Cogmind - Beta 13 @@@ ROGUE MODE // 2024.03.03 @ 20:39:53 Player: TheSlyFawkes Result: Destroyed by L-41 Fighter with Axe Performance ------------- Evolutions (1) 500 Regions Visited (5) 1000 Robots Destroyed (17) 85 Value Destroyed (270) 270 Prototype IDs (0) 0 Alien Tech Used (0) 0 Bonus (818) 818 TOTAL SCORE: 2673 Bonus ------- Follower Combat Kills 218 Met Imprinter 300 Was Imprinted 300 Cogmind --------- Core Integrity 0/400 Matter 300/300 Energy 150/150 System Corruption 1% Temperature Cool (7) Movement Core (100) Ox1 Location -6/Proximity Caves Parts ------- > --- POWER (2) -------- Micro Nuclear Core > --- PROPULSION (3) --- (None) > --- UTILITY (2) ------ (None) > --- WEAPON (2) ------- (None) > --- INVENTORY (5) ---- Weight Redist. System Weight Redist. System Improved Light Cannon CR-A16's Pointy Stick Peak State ------------ > --- POWER ------------ Light Ion Engine > --- PROPULSION ------- Armored Wheel Armored Wheel > --- UTILITY ---------- Small Storage Unit Large Storage Unit > --- WEAPON ----------- EM Pulse Gun Assault Rifle > --- INVENTORY -------- Ion Engine Light Treads Light Treads Armored Wheel Armored Wheel Small Laser Improved Light Cannon Improved Light Cannon [Rating: 10] Favorites ----------- Power Micro Nuclear Core Engine Light Ion Engine Power Core Micro Nuclear Core Propulsion Flight Unit Treads Light Treads Wheel Compact Wheel Hover Unit Hover Unit Flight Unit Flight Unit Utility Large Storage Unit Device Weight Redist. System Storage Large Storage Unit Protection Light Armor Plating Weapon Mining Claw Energy Gun EM Pulse Gun Ballistic Gun Assault Rifle Ballistic Cannon Improved Light Cannon Special Weapon Mining Laser Slashing Weapon Mining Claw Build | -11 -10 -9 -9 -7 -6 ------- Run | Yrd Mat Mat Min Zio Pro Slots Evolved 2 | . . 2 . . . Power 1 | . . 1 . . . Propulsion 1 | . . 1 . . . Utility . | . . . . . . Weapon . | . . . . . . Parts Attached 33 | 6 17 7 1 1 1 Power 7 | 1 2 3 1 . . Engine 6 | 1 2 3 . . . Core 1 | . . . 1 . . Reactor . | . . . . . . Propulsion 14 | 2 6 4 . 1 1 Treads 2 | . 2 . . . . Leg . | . . . . . . Wheel 4 | 2 2 . . . . Hover 1 | . . . . . 1 Flight 7 | . 2 4 . 1 . Utility 4 | 1 3 . . . . Device 1 | . 1 . . . . Storage 2 | 1 1 . . . . Processor . | . . . . . . Hackware . | . . . . . . Protection 1 | . 1 . . . . Artifact . | . . . . . . Weapon 8 | 2 6 . . . . Energy Gun 2 | 1 1 . . . . Energy Cannon . | . . . . . . Ballistic Gun 1 | 1 . . . . . Ballistic Cannon 3 | . 3 . . . . Launcher . | . . . . . . Special Weapon 1 | . 1 . . . . Impact Weapon . | . . . . . . Slashing Weapon 1 | . 1 . . . . Piercing Weapon . | . . . . . . Special Melee Weapon . | . . . . . . Unidentified Prototypes . | . . . . . . Parts Lost 14 | . 6 2 2 . 4 Power 3 | . 1 . 2 . . Propulsion 8 | . 2 2 . . 4 Utility 1 | . 1 . . . . Weapon 2 | . 2 . . . . Highest Loss Streak 5 | . 5 2 1 . 4 To Critical Strikes . | . . . . . . Average Slot Usage (%) 63 | . 75 55 59 55 52 Engine 6 | . 11 15 11 . . Core 5 | . . . 3 11 11 Treads 6 | . 15 . . . . Flight 22 | . 8 29 33 33 30 Device 1 | . 2 . . . . Storage 3 | . 9 . . . . Energy Gun 1 | . 5 . . . . Ballistic Gun 1 | . 3 . . . . Ballistic Cannon 4 | . 11 . . . . Slashing Weapon 7 | . 1 11 11 11 11 Naked Turns . | . . . . . . Heaviest Build 34 | 12 34 11 8 8 8 Greatest Support 40 | 26 40 18 12 12 12 Greatest Overweight (x) 6 | . 6 1 . . 2 Average Overweight (x) . | . . . . . . Largest Inventory Capacity 15 | 8 15 5 5 5 5 Average Capacity 7 | 7 11 5 5 5 5 Most Carried 8 | 7 8 5 5 5 5 Average Carried 4 | 4 3 4 4 4 4 Final Capacity 8 | 8 5 5 5 5 5 Final Carried 6 | 6 4 5 5 5 4 Class Distribution -------------------- 91% | Mutant 8% | Scavenger-Mutant Dominant Class ---------------- Mutant | -10/Materials Scavenger-Mutant | -9/Materials Scavenger-Mutant | -9/Mines Mutant | -7/Zion Mutant | -6/Proximity Caves Resources | -11 -10 -9 -9 -7 -6 ----------- Run | Yrd Mat Mat Min Zio Pro Matter Collected 637 | 226 239 86 76 . 10 Remotely . | . . . . . . Salvage Created 206 | . 106 73 . . 27 Parts 22 | . 11 8 . . 3 Haulers Intercepted . | . . . . . . Recyclers Shooed . | . . . . . . Parts Field Recycled . | . . . . . . Retrieved Matter . | . . . . . . Parts Self-Destructed 7 | . . . . 2 5 Prevented 2 | . . . . . 2 Kills | -11 -10 -9 -9 -7 -6 ------- Run | Yrd Mat Mat Min Zio Pro Combat Hostiles Destroyed 16 | . 11 4 . . 1 Melee 5 | . . 4 . . 1 Guns 3 | . 3 . . . . Cannons 8 | . 8 . . . . Classes Destroyed 3 | . 3 . . . . Worker 1 | . 1 . . . . Swarmer 13 | . 9 3 . . 1 Grunt 3 | . 2 1 . . . Best Kill Streak 8 | . 8 4 . . 1 Combat Bots Only 7 | . 7 4 . . 1 Max Kills in Single Turn 2 | . 2 1 . . 1 Gunslinging . | . . . . . . Exploded . | . . . . . . Melee 1 | . . 1 . . 1 Uniques/NPCs Destroyed . | . . . . . . Combat | -11 -10 -9 -9 -7 -6 -------- Run | Yrd Mat Mat Min Zio Pro Hostile Shots Fired 240 | . 144 27 24 . 45 Missed 76 | . 34 11 13 . 18 Damage Taken 1738 | . 909 148 177 . 504 Core 584 | . 158 45 72 . 309 Absorbed by Shields . | . . . . . . Regen/Repaired (Parts) 28 | . . . . 28 . Core Remaining (%) 68 | 100 36 . . . . Volleys Fired 34 | . 34 . . . . Largest 2 | . 2 . . . . Hottest 100 | . 100 . . . . Shots Fired 58 | . 58 . . . . Gun 9 | . 9 . . . . Cannon 48 | . 48 . . . . Launcher . | . . . . . . Special 1 | . 1 . . . . Kinetic 48 | . 48 . . . . Thermal 10 | . 10 . . . . Explosive . | . . . . . . Electromagnetic . | . . . . . . Robot Hit Streak 4 | . 4 . . . . Robot Miss Streak 4 | . 4 . . . . Penetration Max . | . . . . . . Secondary Targets . | . . . . . . Shots Hit Robots 40 | . 30 8 . . 2 Core Hits 18 | . 13 4 . . 1 Critical Kills . | . . . . . . Critical Parts Destroyed . | . . . . . . Critical Strikes 5 | . 5 . . . . Blast 5 | . 5 . . . . Melee Attacks 16 | . . 13 . . 3 Impact . | . . . . . . Slashing 16 | . . 13 . . 3 Piercing . | . . . . . . Sneak Attacks . | . . . . . . Combat Hostiles . | . . . . . . Follow-up Attacks . | . . . . . . Damage Inflicted 883 | . 658 167 . . 58 Guns 79 | . 79 . . . . Cannons 539 | . 539 . . . . Explosions . | . . . . . . Melee 218 | . . 167 . . 51 Ramming 23 | . 16 . . . 7 Kinetic 539 | . 539 . . . . Thermal 103 | . 103 . . . . Explosive . | . . . . . . Electromagnetic . | . . . . . . Impact . | . . . . . . Slashing 218 | . . 167 . . 51 Piercing . | . . . . . . Highest Corruption . | . . . . . . Average Corruption . | . . . . . . Corruption Purged . | . . . . . . Corruption Blocked . | . . . . . . Overload Shots . | . . . . . . Overflow Damage 4 | . 4 . . . . Projectiles 4 | . 4 . . . . Explosions . | . . . . . . Melee . | . . . . . . Knockbacks 5 | . 5 . . . . Impact . | . . . . . . Kinetic 5 | . 5 . . . . Secondary . | . . . . . . Self-Inflicted Damage 3 | . . . . . 3 Shots . | . . . . . . Rammed 8 | . 6 . . . 2 Targets Rammed 8 | . 6 . . . 2 Kicked . | . . . . . . Crushed . | . . . . . . Highest Temperature 156 | . 156 3 34 . 18 Average Temperature 67 | . 72 3 19 . 8 Received Heat Transfer 298 | . 72 18 61 . 147 Siege Activations . | . . . . . . Robots Corrupted . | . . . . . . Combat Hostiles . | . . . . . . Parts Fried . | . . . . . . Impact Corruptions . | . . . . . . Robots Melted . | . . . . . . Combat Hostiles . | . . . . . . Parts Melted . | . . . . . . Heat Transferred 225 | . 225 . . . . Parts Sabotaged . | . . . . . . Parts Stolen . | . . . . . . Parts Stripped . | . . . . . . Power Chain Reactions . | . . . . . . Alert | -11 -10 -9 -9 -7 -6 ------- Run | Yrd Mat Mat Min Zio Pro Peak Influence 267 | . 253 267 191 . . Initial 103 | . . 87 103 . . Average 117 | . 119 165 118 . . Maximum Alert Level 1 | . 1 1 . . . Low Security (%) 83 | 100 78 82 100 . . Level 1 16 | . 21 17 . . . Level 2 . | . . . . . . Level 3 . | . . . . . . Level 4 . | . . . . . . Level 5 . | . . . . . . High Security . | . . . . . . Max Security . | . . . . . . Squads Dispatched 6 | . 3 1 1 . 1 Investigation 3 | . 2 . 1 . . Extermination . | . . . . . . Reinforcement 2 | . 1 1 . . . Assault 1 | . . . . . 1 Garrison . | . . . . . . Intercept . | . . . . . . Searches Triggered . | . . . . . . Construction Impeded . | . . . . . . Haulers Reinforced . | . . . . . . Active Scanning Responses . | . . . . . . Cargo Convoy Interrupts . | . . . . . . Stealth | -11 -10 -9 -9 -7 -6 --------- Run | Yrd Mat Mat Min Zio Pro Distress Signals 4 | . 1 3 . . . Communications Jammed . | . . . . . . Distress Signals . | . . . . . . Times Spotted 86 | . 20 15 30 . 21 Peak Tracking Total 18 | . 6 10 18 . 13 Tactical Retreats 12 | . 3 1 5 . 3 Traps | -11 -10 -9 -9 -7 -6 ------- Run | Yrd Mat Mat Min Zio Pro Traps Triggered 2 | . 2 . . . . Indirectly . | . . . . . . Trap Hack Attempts . | . . . . . . Triggered . | . . . . . . Disarmed . | . . . . . . Reprogrammed . | . . . . . . Reused . | . . . . . . Traps Extracted . | . . . . . . Installed . | . . . . . . Triggered . | . . . . . . Machines | -11 -10 -9 -9 -7 -6 ---------- Run | Yrd Mat Mat Min Zio Pro Machines Disabled 2 | . 2 . . . . Max in Single Turn 1 | . 1 . . . . Machines Repaired . | . . . . . . Machines Dismantled . | . . . . . . Machines Sabotaged . | . . . . . . Overloaded Fab Kills . | . . . . . . Hacking | -11 -10 -9 -9 -7 -6 --------- Run | Yrd Mat Mat Min Zio Pro Machines Accessed 4 | . 2 1 1 . . Terminals 3 | . 2 1 . . . Fabricators . | . . . . . . Repair Stations . | . . . . . . Recycling Units . | . . . . . . Scanalyzers . | . . . . . . Garrison Access . | . . . . . . Total Hacks 11 | . 6 4 1 . . Successful 4 | . 1 2 1 . . Failed 7 | . 5 2 . . . Catastrophic 1 | . 1 . . . . Database Lockouts . | . . . . . . Manual 13 | . 5 1 . 7 . Terminals 10 | . 6 4 . . . Fabricators . | . . . . . . Repair Stations . | . . . . . . Recycling Units . | . . . . . . Scanalyzers . | . . . . . . Garrison Access . | . . . . . . Terminal Hacks 2 | . . 1 1 . . Open Door 1 | . . . 1 . . Zone Layout 1 | . . 1 . . . Fabricator Hacks . | . . . . . . Repair Station Hacks . | . . . . . . Recycling Unit Hacks . | . . . . . . Scanalyzer . | . . . . . . Garrison Access Hacks . | . . . . . . Unauthorized Hacks 2 | . 1 1 . . . Terminals 2 | . 1 1 . . . Botnet 2 | . 1 1 . . . Fabricators . | . . . . . . Repair Stations . | . . . . . . Recycling Units . | . . . . . . Scanalyzers . | . . . . . . Garrison Access . | . . . . . . Data Cores Recovered . | . . . . . . Used . | . . . . . . Hacking Detections 3 | . 2 1 . . . Full Trace Events . | . . . . . . Feedback Events . | . . . . . . Feedback Blocked . | . . . . . . Robot Schematics Acquired 3 | . . . . 3 . Robots Built . | . . . . . . Authchips . | . . . . . . Time . | . . . . . . Total Robot Build Rating . | . . . . . . Part Schematics Acquired 14 | . . . . 14 . Parts Built . | . . . . . . Authchips . | . . . . . . Time . | . . . . . . Total Part Build Rating . | . . . . . . Parts Repaired . | . . . . . . Time . | . . . . . . Parts Recycled . | . . . . . . Recycled Matter . | . . . . . . Retrieved Matter . | . . . . . . Retrieved Components . | . . . . . . Parts Scanalyzed . | . . . . . . Part Schematics Acquired . | . . . . . . Parts Damaged . | . . . . . . Bothacking | -11 -10 -9 -9 -7 -6 ------------ Run | Yrd Mat Mat Min Zio Pro Used RIF Installer . | . . . . . . Robots Hacked . | . . . . . . Non-combat . | . . . . . . Combat . | . . . . . . Robot Hacks Applied . | . . . . . . Relay Couplers Released . | . . . . . . Fabnet Peak Effective % . | . . . . . . Robots Rewired . | . . . . . . Allies Hacked . | . . . . . . Hacks Repelled . | . . . . . . Allies | -11 -10 -9 -9 -7 -6 -------- Run | Yrd Mat Mat Min Zio Pro Total Allies 8 | . . . 2 6 . Largest Group 6 | . . . 2 6 6 Highest-Rated Group 211 | . . . 55 211 211 Highest-Rated Ally 41 | . . . 31 41 41 Total Orders . | . . . . . . Ally Attacks 41 | . . . 9 . 32 Total Damage 1106 | . . . 84 . 1022 Kills 8 | . . . 3 . 5 Allies Corrupted . | . . . . . . Allies Melted . | . . . . . . Intel | -11 -10 -9 -9 -7 -6 ------- Run | Yrd Mat Mat Min Zio Pro Robot Analysis Total . | . . . . . . Derelict Logs Recovered 2 | . . . 1 1 . Drone Launches . | . . . . . . Drone Recoveries . | . . . . . . Exploration | -11 -10 -9 -9 -7 -6 ------------- Run | Yrd Mat Mat Min Zio Pro Turns Passed 2058 | 62 777 117 172 792 138 Spaces Moved 3046 | 46 694 175 398 1484 249 Core 22 | 1 20 . . . 1 Treads 223 | . 223 . . . . Legs . | . . . . . . Wheels 86 | 45 41 . . . . Hover 6 | . . . . . 6 Flight 2709 | . 410 175 398 1484 242 Fastest Speed 34 | 50 37 34 34 34 34 Average Speed 46 | 93 81 35 34 34 36 Slowest Speed 350 | 100 350 120 34 34 150 Overloaded Moves . | . . . . . . Propulsion Burnouts . | . . . . . . Robots Hopped 12 | . 2 7 2 . 1 Cave-ins Triggered . | . . . . . . Exploration Rate (%) 53 | 4 91 21 72 92 38 Regions Visited 5 Branch Regions 3 Pre-discovered Areas 3 | . . . . 3 . Known Exits Taken . | . . . . . . Unknown Exits Taken 5 | 1 1 1 1 1 . Scrap Searched 4 | . . . 1 3 . Spaces Dug . | . . . . . . Terrain Destroyed 1 | . 1 . . . . Melee . | . . . . . . Projectile 1 | . 1 . . . . AOE . | . . . . . . Terrain Rammed . | . . . . . . Walls Destroyed . | . . . . . . Machines Disabled . | . . . . . . Actions | -11 -10 -9 -9 -7 -6 --------- Run | Yrd Mat Mat Min Zio Pro Total 3590 | 62 838 197 432 1770 291 Wait 425 | 4 62 5 33 284 37 Move 3020 | 45 689 163 393 1483 247 Hop 9 | . 2 4 2 . 1 Pick Up 22 | 7 12 . 2 1 . Fast Attach 15 | 5 6 4 . . . Attach 11 | 1 7 1 1 . 1 Detach 2 | . . 2 . . . Swap 7 | . 4 2 . 1 . Drop 21 | . 16 3 1 1 . Fire 34 | . 34 . . . . Melee 16 | . . 13 . . 3 Ram 2 | . . . . . 2 Kick . | . . . . . . Crush 6 | . 6 . . . . Escape Stasis . | . . . . . . Rewire . | . . . . . . Trap . | . . . . . . Miscellaneous . | . . . . . . Route ------- -11/Scrapyard -10/Materials (discovered 5 exits: *Mat x3 / [*Min x2]) -9/Materials -9/Mines (discovered 2 exits: Mat / *Zio) -7/Zion (discovered 2 exits: [*Dee] / [*Pro]) -6/Proximity Caves History --------- Turn | Location | Event 14 | -11/Scrapyard | Discovered new exit (range 15) 63 | -11/Scrapyard | Entered Materials 246 | -10/Materials | Discovered new exit (range 9) 312 | -10/Materials | Build established: Mutant 357 | -10/Materials | Destroyed 7 combat bots 468 | -10/Materials | Discovered new exit (range 8) 554 | -10/Materials | Core integrity fell below 50% 600 | -10/Materials | Lost 5 parts (1p2n2w) 638 | -10/Materials | Discovered new exit (range 15) 669 | -10/Materials | Discovered new exit (range 6) 822 | -10/Materials | Discovered new exit (range 15) 840 | -10/Materials | Entered another Materials area 840 | -9/Materials | Evolved 2 slots: Power x1, Propulsion x1 951 | -9/Materials | Discovered new exit (range 13) 957 | -9/Materials | Entered Mines 977 | -9/Mines | Met a Derelict shopkeep closing up shop 1000 | -9/Mines | Assembled infested the area 1033 | -9/Mines | Identified exit to Materials 1069 | -9/Mines | A Derelict revealed a hidden shortcut to a safe place 1129 | -9/Mines | Entered Zion 1167 | -7/Zion | Acquired unknown access codes intercepted by a Zionite 1211 | -7/Zion | Learned Factory terminal intel 1217 | -7/Zion | Learned location of Data Miner (-6) 1260 | -7/Zion | Imprinted 1262 | -7/Zion | Declared Zion's savior 1356 | -7/Zion | Gained Derelict followers 1396 | -7/Zion | Found CR-A16's Pointy Stick 1399 | -7/Zion | Learned location of Warlord (-4) 1457 | -7/Zion | Discovered new exit (range 10) 1582 | -7/Zion | Visited the Megawrench Repair Shop 1582 | -7/Zion | Megawrench repaired 3 parts 1647 | -7/Zion | Opened final containment barrier to the Deep Caves 1653 | -7/Zion | Discovered new exit (range 3) 1653 | -7/Zion | Saw the warning signs outside the Deep Caves entrance 1921 | -7/Zion | Entered Proximity Caves 1921 | -6/Proximity Caves | Accompanied by 6 allies 2006 | -6/Proximity Caves | Attracted the attention of an 0b10 checkpoint 2006 | -6/Proximity Caves | Lost 6 allies 2043 | -6/Proximity Caves | Core integrity fell below 50% 2052 | -6/Proximity Caves | Attracted the attention of an 0b10 outpost 2055 | -6/Proximity Caves | Core integrity fell below 20% 2059 | -6/Proximity Caves | Destroyed by L-41 Fighter with Axe Last Messages --------------- 2S-Q9L(b) destroyed. Acquired 10 matter. G-50 Soldier misfires. Y-54 Guardian: "INTERCEPTING UNREGISTERED DERELICT." Critical hit (Burn: +37). Slug penetrates Wall. Flight Unit destroyed. S-27 Virus destroyed. Flight Unit destroyed. Y-64 Sentinel: "DETECTED UNIDENTIFIED DERELICT." Mining Claw severed. Autogun fries itself beyond repair. G-50 Soldier destroyed. Slug penetrates Wall. Y-64 Sentinel: "REQUESTING BACKUP." Hover Unit destroyed. Slug penetrates Wall. Slammed into L-41 Fighter. Destabilizing: System corrupted (+1). Map ----- +----------------------------------------------------+ | ?????????????????????????????????????????????????? | | ?????????????????????????????????????????????????? | | ?????????????????????????????????????????????????? | | ?????????????????????????????????????????????????? | | ?????????????????????????????????????????????????? | | ?????????????????????????????????????????????????? | | ?????????????????????????????????????????????????? | | ?????????????????????????????????????????????????? | | ?????????????????????????????????????????????????? | | ?????????????????????????????????????????????????? | | ??????##????????????????????###??????????????????? | | #### ##?????????????###### ##?????????????????? | | #????????????## #?????????????????? | | #?#####?####??# #?????????????????? | | #??## ### #?## #?????????????????? | | ##??????# ### #?????????????????? | | ????????## ## #?????????????????? | | ?????????##### #?????????????????? | | ##???????????# / ##?????????????????? | | ##??????????# %= ###??????????????????? | | #??????????# *!% ##????????????????????? | | #?????????## ##gggl ##????????????????????? | | #???#####?# ##### #????????????????????? | | ##### #######???# #????????????????????? | | ##???????# #????????????????????? | | ## ##??????## @ ##????????????????????? | | ### ##??????## ll ##????????????????????? | | #?# ##??????# #????????????????????? | | #?# ####???# ##????????????????????? | | ### ##??# Y ##?????????????????????? | | ### ##?##g #######????????????????? | | ### ## ####g #????????????????? | | ?? ## ## ##????????????????? | | ?? ## ### #?????????????????? | | ? ### #?# ## #?????????????????? | | ? #?# #?# ##??#?????????????????? | | # #?## ###?????????????????????? | | "# #??### ### ##???????????????????????? | | ?## ????## ## #?###????????????????????????? | | ??? ?????# ### #????????????????????????????? | | ??? ?????####?# ##????????????????????????????? | | ???????????????? #?????????????????????????????? | | ??????????????? #?????????????????????????????? | | ?????????????? #??????????????????????????????? | | ?????????????? ???????????????????????????????? | | ????????????? ???????????????????????????????? | | ?????????????? ???????????????????????????????? | | ???????????????? ????????????????????????????????? | | ?????????????????????????????????????????????????? | | ?????????????????????????????????????????????????? | +----------------------------------------------------+ Best States ------------- Heat Dissipation 28 Energy Generation 15 Energy Capacity 250 Matter Stores 300 Matter Capacity 300 Sight Range 16 Terrain Scan Density 10 Additional Mass Support 6 Armor Coverage 150 Evasion (%) 63 Recoil Reduction 2 Item Schematics ----------------- Imp. Hacking Suite | -7/Zion | Archive Imp. Titanium Leg | -7/Zion | Archive Arm. Medium Treads | -7/Zion | Archive Point Defense System | -7/Zion | Archive Launcher Guidance Computer | -7/Zion | Archive Lgt. Angular Momentum Engine | -7/Zion | Archive Gauss Rifle | -7/Zion | Archive Imp. Field Recycling Unit | -7/Zion | Archive Proton Cannon | -7/Zion | Archive Force Booster | -7/Zion | Archive Slug Cannon | -7/Zion | Archive Coil Gun | -7/Zion | Archive Imp. Reaction Control System | -7/Zion | Archive Hvy. Missile Launcher | -7/Zion | Archive Robot Schematics ------------------ Y-54 Guardian | -7/Zion | Archive D-53 Grenadier | -7/Zion | Archive L-31 Rogue | -7/Zion | Archive Fabricated ------------ Nothing Alien Tech Used ----------------- None Achievements -------------- Cya! Challenges ------------ None Game ------ Seed SkeletonVisualCannon Manual? 0 Play Time 00:32:23 Cumulative 35.1 hours Start 2024.03.03 @ 14:46:10 End 2024.03.03 @ 20:39:53 Sessions 3 Manual Loads 0 Difficulty Rogue Special Mode None Game No. 54 Rogue 53 Adventurer 1 Explorer 0 Win Type - Total 0 Types 0/0/0/0/0/0/0/0/0 Lore% 22 Gallery% 26 Achievement% 29 Wizard Run 0 Options --------- Layout 1 ASCII 0 Keyboard 0 Movement Numpad Keybinds 0 Fullscreen 1 Font 24/Smallcaps Map View 50x35 Zoom Use 0% Tactical HUD 0 Map Filters NONE Filters NONE Steam 1 RUN: 99fb2282-836d-48f0-aaf2-ec9146a87c20